bitfinex-derivatives/quotes_BTCF0:USTF0_20241116
["timestamp","ask_amount","ask_price","bid_price","bid_amount"]
[1731784952614,0.054854,91108.0,91105.0,0.10976044]
[1731784953010,0.21769083,91108.0,91105.0,0.10976044]
[1731784953211,0.054854,91108.0,91105.0,0.10976044]
[1731784953512,0.054854,91108.0,91105.0,0.16461544]
[1731784953704,0.21769083,91108.0,91106.0,0.054854]
[1731784955105,0.16283683,91107.0,91106.0,0.054854]
[1731784956107,0.3608,91110.0,91106.0,0.054854]
[1731784956316,0.3608,91110.0,91104.0,0.08228]
[1731784956317,0.3608,91110.0,91107.0,0.054854]
[1731784958219,0.52363683,91110.0,91107.0,0.054854]
[1731784958420,0.3608,91110.0,91108.0,0.054853]
[1731784959019,0.3608,91110.0,91109.0,0.00013463]
[1731784960312,0.16283683,91113.0,91109.0,0.05498663]
[1731784960828,0.16283683,91112.0,91109.0,0.05498663]
[1731784961322,0.16283683,91111.0,91110.0,0.00343035]
[1731784961721,0.16283683,91112.0,91109.0,0.05498663]
[1731784962119,0.16283683,91111.0,91109.0,0.05498663]
[1731784962513,0.16283683,91112.0,91109.0,0.05498663]
[1731784962929,0.21768683,91113.0,91109.0,0.05498663]
[1731784963118,0.16283683,91112.0,91109.0,0.05498663]
[1731784963831,0.16283683,91113.0,91109.0,0.05498663]
[1731784964123,0.0318,91118.0,91109.0,0.05498663]
[1731784964124,0.25380374,91112.0,91109.0,0.05498663]
[1731784964325,0.25380374,91111.0,91109.0,0.05498663]
[1731784964628,0.25380374,91110.0,91109.0,0.05498663]
[1731784964824,0.19478673,91110.0,91109.0,0.05498663]
[1731784965316,0.05901701,91110.0,91109.0,0.05498763]
[1731784965510,0.19574631,91111.0,91109.0,0.05498663]
[1731784965718,0.3608,91110.0,91080.0,0.3608]
[1731784966013,0.16311337,91085.0,91084.0,0.10975803]
[1731784966216,0.11388401,91085.0,91084.0,0.12005109]
[1731784966414,0.11388401,91085.0,91080.0,0.41567]
[1731784966623,0.05901701,91084.0,91081.0,0.01372464]
[1731784966926,0.25469975,91083.0,91082.0,0.05838725]
[1731784967221,0.05901701,91083.0,91082.0,0.05838725]
[1731784967623,0.19564949,91083.0,91082.0,0.05838725]
[1731784967826,0.55644949,91083.0,91082.0,0.00351825]
[1731784968027,0.05901701,91083.0,91082.0,0.00351825]
[1731784968215,0.19561783,91083.0,91082.0,0.00351825]
[1731784968417,0.25463484,91083.0,91082.0,0.00351825]
[1731784969234,0.05901701,91083.0,91082.0,0.00351825]
[1731784969817,0.05901701,91083.0,91082.0,8.709e-05]
[1731784970023,0.05901701,91083.0,91082.0,0.00351855]
[1731784970220,0.05901701,91083.0,91082.0,0.00351862]
[1731784970528,0.05901701,91083.0,91082.0,8.709e-05]
[1731784971331,0.054869,91084.0,91082.0,8.709e-05]
[1731784971630,0.054869,91084.0,91066.0,0.03204705]
[1731784971631,0.054899,91034.0,91032.0,0.3608]
[1731784971828,0.054895,91041.0,91033.0,0.054899]
[1731784972026,0.054895,91041.0,91032.0,0.3608]
[1731784972027,0.054895,91040.0,91032.0,0.3608]
[1731784972229,0.054897,91038.0,91032.0,0.3608]
[1731784972423,0.3608,91047.0,91032.0,0.3608]
[1731784972424,0.054899,91033.0,91032.0,0.3608]
[1731784972628,0.054899,91033.0,91032.0,0.36431984]
[1731784976029,0.00011206,91044.0,91032.0,0.56783268]
[1731784976234,0.00011206,91044.0,91043.0,0.09366197]
[1731784976434,0.00011206,91044.0,91043.0,0.09709505]
[1731784976631,0.00011206,91044.0,91043.0,0.10258761]
[1731784977635,0.00011206,91044.0,91043.0,0.00343308]
[1731784978620,0.00011206,91044.0,91043.0,0.11327068]
[1731784979234,0.00164816,91053.0,91043.0,0.11327068]
[1731784979529,0.00164816,91053.0,91052.0,0.054888]
[1731784979731,0.00164816,91053.0,91052.0,0.05832108]
[1731784980322,0.00164816,91053.0,91052.0,0.0583205]
[1731784980729,0.00164816,91053.0,91052.0,0.05832049]
[1731784980925,0.00164816,91053.0,91052.0,0.16814723]
[1731784981128,0.0051,91065.0,91064.0,0.05488]
[1731784981329,0.0001294,91066.0,91064.0,0.05831249]
[1731784981531,0.0001294,91066.0,91065.0,0.00343249]
[1731784981737,0.0001294,91066.0,91065.0,0.11324416]
[1731784981933,0.0001294,91066.0,91065.0,0.19836416]
[1731784982838,0.0001294,91066.0,91065.0,0.20385509]
[1731784982839,4e-07,91066.0,91065.0,0.20385509]
[1731784983135,0.09366197,91116.0,91096.0,0.054861]
[1731784983340,0.3608,91107.0,91097.0,0.00343249]
[1731784983527,0.054856,91105.0,91098.0,0.00343249]
[1731784983834,0.054856,91105.0,91096.0,0.054861]
[1731784983835,0.054856,91105.0,91099.0,0.00343249]
[1731784984040,0.3608,91107.0,91104.0,0.00013999]
[1731784984241,0.3608,91107.0,91105.0,0.00343249]
[1731784984429,0.3608,91107.0,91106.0,0.00343249]
[1731784985133,0.36092354,91107.0,91106.0,0.00343249]
[1731784985847,0.36092354,91107.0,91106.0,0.00892155]
[1731784986141,0.36092354,91107.0,91100.0,0.054858]
[1731784986438,0.36092354,91107.0,91106.0,0.054855]
[1731784986831,0.00012354,91107.0,91106.0,0.054855]
[1731784987334,0.00012354,91107.0,91106.0,0.05493352]
[1731784990736,0.00012354,91107.0,91106.0,7.852e-05]
[1731784991045,0.16314079,91107.0,91106.0,7.852e-05]
[1731784991345,0.05829477,91107.0,91106.0,7.852e-05]
[1731784991528,0.00012354,91107.0,91106.0,7.852e-05]
[1731784992850,0.16231098,91107.0,91106.0,7.852e-05]
[1731784993049,0.00012354,91107.0,91106.0,7.852e-05]
[1731784994838,0.00012354,91107.0,91097.0,0.08512]
[1731784995241,0.00012354,91107.0,91098.0,0.10976165]
[1731784996052,0.00012354,91107.0,91099.0,0.00014254]
[1731784996250,0.00012354,91107.0,91100.0,0.00548901]
[1731784996446,0.00012354,91107.0,91101.0,0.00548901]
[1731784996654,0.00012354,91107.0,91102.0,0.00548901]
[1731784996948,0.00012354,91107.0,91103.0,0.00548901]
[1731784997141,0.00012354,91107.0,91104.0,0.00548901]
[1731784997445,0.00012354,91107.0,91105.0,0.00548901]
[1731784997751,0.00012354,91107.0,91106.0,0.00548901]
[1731784998136,0.00012354,91107.0,91106.0,0.0089197]
[1731784998943,0.00012354,91107.0,91099.0,0.00014254]
[1731784998944,0.054859,91100.0,91099.0,0.00014254]
[1731785000654,0.384179,91100.0,91085.0,0.0051]
[1731785000843,0.054871,91079.0,91078.0,0.0051]
[1731785001043,0.054871,91079.0,91077.0,0.00164656]
[1731785001853,0.054871,91079.0,91078.0,9.671e-05]
[1731785003150,0.054871,91079.0,91064.0,0.0051]
[1731785003151,0.054877,91070.0,91064.0,0.0051]
[1731785003354,0.054877,91070.0,91050.0,0.0653]
[1731785003355,0.415677,91070.0,91055.0,0.0051]
[1731785003546,0.47200956,91070.0,91055.0,0.0051]
[1731785003741,0.47201121,91070.0,91055.0,0.0051]
[1731785004044,0.47201121,91070.0,91069.0,0.00053225]
[1731785006956,0.054884,91059.0,91055.0,0.0051]
[1731785007253,0.054884,91059.0,91054.0,0.09366197]
[1731785007742,0.054884,91059.0,91055.0,0.01029695]
[1731785007944,0.054884,91058.0,91056.0,0.0001171]
[1731785008154,0.16231261,91057.0,91056.0,0.0001171]
[1731785008356,0.054884,91058.0,91056.0,0.0001171]
[1731785009050,0.054884,91058.0,91057.0,0.00549173]
[1731785009254,0.18480482,91058.0,91057.0,0.00549173]
[1731785009461,0.054884,91058.0,91057.0,0.00549173]
[1731785010447,0.054884,91058.0,91057.0,0.00549181]
[1731785010858,0.054884,91058.0,91057.0,0.00549182]
[1731785011051,0.054884,91058.0,91057.0,0.0089242]
[1731785011253,0.18478714,91058.0,91057.0,0.0089242]
[1731785011459,0.054884,91058.0,91057.0,0.0089242]
[1731785011953,0.18478714,91058.0,91057.0,0.0089242]
[1731785012252,0.054884,91058.0,91057.0,0.0089242]
[1731785012658,0.0051,91063.0,91057.0,0.0089242]
[1731785012849,0.054884,91058.0,91056.0,0.0001171]
[1731785013055,0.054884,91058.0,91057.0,0.00892424]
[1731785013959,0.054884,91058.0,91056.0,0.0001171]
[1731785014168,0.054884,91058.0,91057.0,0.00892433]
[1731785015968,0.054885,91056.0,91025.0,0.08432]
[1731785016261,0.054885,91056.0,91023.0,0.45446197]
[1731785016262,0.054896,91038.0,91037.0,0.0051]
[1731785016454,0.054896,91038.0,91033.0,0.0315]
[1731785016857,0.054896,91038.0,91037.0,0.00011245]
[1731785018257,0.054898,91034.0,91033.0,0.0315]
[1731785018767,0.054904,91024.0,91023.0,0.0051]
[1731785019058,0.054901,91029.0,91023.0,8.576e-05]
[1731785019248,0.054904,91024.0,91023.0,8.576e-05]
[1731785019863,0.02056954,91024.0,91023.0,0.0035192]
[1731785020053,0.0051,91032.0,91023.0,0.0035192]
[1731785020256,0.054903,91026.0,91024.0,0.00343344]
[1731785020559,0.054903,91026.0,91025.0,0.00343344]
[1731785020856,0.054903,91026.0,91023.0,8.576e-05]
[1731785021057,0.0051,91032.0,91023.0,8.576e-05]
[1731785021266,0.054903,91026.0,91024.0,0.10985992]
[1731785021562,0.0051,91032.0,91024.0,0.10985992]
[1731785021753,0.0051,91032.0,91024.0,0.16476392]
[1731785021754,0.0549,91031.0,91024.0,0.16476392]
[1731785022553,0.0051,91032.0,91024.0,0.16476392]
[1731785022554,0.054901,91030.0,91024.0,0.16476392]
[1731785025264,0.09366197,91031.0,91024.0,0.16476392]
[1731785025561,0.054902,91029.0,91024.0,0.16476392]
[1731785025949,0.054902,91029.0,91025.0,0.00549382]
[1731785026246,0.09366197,91031.0,91026.0,0.00549382]
[1731785026447,0.054902,91028.0,91027.0,0.00549382]
[1731785027044,0.054904,91024.0,91023.0,8.576e-05]
[1731785027249,0.14856597,91024.0,91023.0,8.576e-05]
[1731785027551,0.20375551,91024.0,91023.0,8.576e-05]
[1731785027761,0.2038571,91024.0,91023.0,8.576e-05]
[1731785027960,0.2038571,91024.0,91023.0,0.00351974]
[1731785028870,0.39863224,91024.0,91023.0,0.00351974]
[1731785029464,0.2038571,91024.0,91023.0,0.00351974]
[1731785031249,0.11019513,91024.0,91023.0,0.05842474]
[1731785031450,0.05529113,91024.0,91023.0,0.05842468]
[1731785031649,0.05534118,91024.0,91023.0,0.05842468]
[1731785031852,0.054902,91029.0,91027.0,0.054903]
[1731785032057,0.054902,91029.0,91028.0,0.031]
[1731785032261,0.19500851,91030.0,91029.0,0.054901]
[1731785032561,0.05535461,91030.0,91029.0,0.00343381]
[1731785033168,0.05535461,91030.0,91023.0,8.576e-05]
[1731785033169,0.054904,91024.0,91023.0,8.576e-05]
[1731785033352,0.11025861,91024.0,91023.0,8.576e-05]
[1731785034667,0.05535461,91024.0,91023.0,8.576e-05]
[1731785034873,0.05515308,91024.0,91023.0,8.576e-05]
[1731785035249,0.25024536,91024.0,91023.0,8.576e-05]
[1731785035666,0.05515308,91024.0,91023.0,8.576e-05]
[1731785036267,0.25024536,91024.0,91023.0,8.576e-05]
[1731785037264,0.05514506,91024.0,91023.0,0.00557959]
[1731785038355,0.05514979,91028.0,91023.0,0.00557959]
[1731785038556,0.0051,91032.0,91031.0,0.0549]
[1731785038760,9.217e-05,91036.0,91035.0,0.054898]
[1731785038959,9.217e-05,91036.0,91035.0,0.06039183]
[1731785039167,0.26782856,91036.0,91035.0,0.00549383]
[1731785039461,0.32299325,91036.0,91035.0,0.00549383]
[1731785039961,0.32299325,91036.0,91014.0,0.144612]
[1731785040154,0.1626541,91016.0,91015.0,0.06521012]
[1731785040354,0.05516469,91016.0,91015.0,0.39481012]
[1731785040556,0.05498917,91036.0,91024.0,0.054904]
[1731785040557,0.19518418,91025.0,91024.0,0.054904]
[1731785040762,0.05398466,91025.0,91024.0,0.06520412]
[1731785041068,0.054898,91035.0,91030.0,0.0549]
[1731785041277,0.26227231,91034.0,91030.0,0.0549]
[1731785041451,0.26227231,91033.0,91030.0,0.0549]
[1731785041767,0.26227231,91032.0,91030.0,0.0549]
[1731785041959,0.26227231,91031.0,91030.0,0.0549]
[1731785042957,0.26227231,91031.0,91030.0,0.16475208]
[1731785043157,0.26207974,91031.0,91030.0,0.17505142]
[1731785043359,0.01965537,91031.0,91030.0,0.18535136]
[1731785043556,9.217e-05,91036.0,91035.0,0.054898]
[1731785043854,9.217e-05,91036.0,91035.0,0.51965931]
[1731785044065,9.217e-05,91036.0,91035.0,0.62950656]
[1731785044368,9.217e-05,91036.0,91035.0,0.63980456]
[1731785044873,9.217e-05,91036.0,91035.0,0.62950656]
[1731785045070,9.217e-05,91036.0,91035.0,0.63293917]
[1731785047167,0.19545114,91052.0,91036.0,0.054897]
[1731785047363,0.19545114,91053.0,91047.0,0.05489]
[1731785047563,0.054886,91054.0,91048.0,0.00343261]
[1731785047770,0.054886,91054.0,91049.0,0.00343261]
[1731785048063,0.054886,91054.0,91050.0,0.00343261]
[1731785048271,0.054886,91054.0,91051.0,0.00343261]
[1731785048472,0.054886,91054.0,91052.0,0.00343261]
[1731785048775,0.054886,91054.0,91053.0,0.00343261]
[1731785050986,0.0332,91056.0,91054.0,0.054886]
[1731785051163,0.0332,91056.0,91055.0,0.00343251]
[1731785052471,0.00164765,91057.0,91055.0,0.00343251]
[1731785052677,0.00164765,91057.0,91056.0,0.00343251]
[1731785053759,0.00164765,91057.0,91056.0,0.206917]
[1731785053958,0.00164765,91057.0,91056.0,0.26169829]
[1731785054358,0.00011137,91060.0,91056.0,0.26169795]
[1731785054557,0.00011137,91060.0,91057.0,0.00343217]
[1731785054767,0.00011137,91060.0,91059.0,0.054883]
[1731785054971,0.00011137,91060.0,91059.0,0.05831517]
[1731785055677,0.00011137,91060.0,91059.0,0.16813468]
[1731785058670,0.00011137,91060.0,91059.0,0.25181468]
[1731785061280,0.00011137,91060.0,91059.0,0.26211031]
[1731785061781,0.00011137,91060.0,91059.0,0.26211001]
[1731785062768,0.00011137,91060.0,91059.0,0.17843001]
[1731785062975,0.00011137,91060.0,91059.0,0.26099001]
[1731785064580,0.00011137,91060.0,91059.0,0.25069438]
[1731785066982,0.00011137,91060.0,91059.0,0.26098946]
[1731785067177,0.0051,91064.0,91059.0,0.59042946]
[1731785067376,0.0051,91064.0,91063.0,0.50934297]
[1731785067684,0.0051,91064.0,91063.0,0.51277484]
[1731785068080,0.0051,91064.0,91063.0,0.95203287]
[1731785068583,0.0051,91064.0,91063.0,0.96232762]
[1731785070479,0.0051,91064.0,91063.0,0.9624332]
[1731785070680,0.00012003,91086.0,91063.0,1.00121417]
[1731785070889,0.00012003,91086.0,91085.0,0.14852997]
[1731785071087,0.00012003,91086.0,91085.0,0.15196157]
[1731785071382,0.00012003,91086.0,91085.0,0.14852997]
[1731785071575,0.00012003,91086.0,91085.0,0.26177457]
[1731785073693,0.00012003,91086.0,91085.0,0.27206745]
[1731785074677,0.00012003,91086.0,91085.0,0.32748237]
[1731785075886,0.19511989,91107.0,91087.0,0.054866]
[1731785076082,0.19511989,91113.0,91104.0,0.3608]
[1731785076277,0.19511989,91113.0,91110.0,0.14851497]
[1731785076478,0.41415323,91111.0,91110.0,0.15194609]
[1731785077494,0.41415323,91111.0,91108.0,0.00395042]
[1731785077793,0.05335323,91110.0,91109.0,0.0549931]
[1731785078085,0.3608,91111.0,91109.0,0.16474993]
[1731785080187,0.3608,91111.0,91110.0,0.09366197]
[1731785080383,0.41415298,91111.0,91110.0,0.09366197]
[1731785080589,0.3608,91111.0,91110.0,0.09366197]
[1731785080894,0.41415295,91111.0,91110.0,0.2034194]
[1731785081088,0.3608,91111.0,91110.0,0.2034194]
[1731785081388,0.41415295,91111.0,91110.0,0.2034194]
[1731785082790,0.05335295,91111.0,91110.0,0.2034194]
[1731785082994,0.05335295,91111.0,91110.0,0.2582724]
[1731785083309,0.0616,91115.0,91111.0,0.054851]
[1731785083599,0.05335155,91114.0,91112.0,0.054851]
[1731785083778,0.05335155,91114.0,91110.0,0.09366197]
[1731785083983,0.13001174,91114.0,91112.0,0.10975683]
[1731785084181,0.19161174,91115.0,91110.0,0.09366197]
[1731785084393,0.19161174,91115.0,91113.0,0.054851]
[1731785084878,0.19161174,91115.0,91108.0,0.04344389]
[1731785085080,0.19161174,91115.0,91110.0,0.09366197]
[1731785085285,0.13001174,91114.0,91111.0,0.10975261]
[1731785085492,0.13001174,91114.0,91113.0,0.054851]
[1731785085882,0.0616,91115.0,91113.0,0.05496585]
[1731785088086,0.0616,91115.0,91114.0,0.05485]
[1731785089696,0.19161174,91115.0,91114.0,0.05485]
[1731785089902,0.0616,91115.0,91114.0,0.05485]
[1731785090103,0.48450197,91115.0,91113.0,0.00011485]
[1731785090286,0.054855,91105.0,91104.0,0.0051]
[1731785090486,0.054859,91100.0,91099.0,0.054859]
[1731785091187,0.054859,91100.0,91099.0,0.054984]
[1731785091387,0.10822027,91100.0,91099.0,0.05841488]
[1731785091588,0.10822029,91100.0,91099.0,0.05841488]
[1731785092407,0.10822029,91100.0,91099.0,0.054984]
[1731785093295,0.1082212,91100.0,91099.0,0.054984]
[1731785093900,0.0533622,91100.0,91099.0,0.16475408]
[1731785094088,0.41948067,91104.0,91099.0,0.10989508]
[1731785094292,0.41948067,91104.0,91103.0,0.054857]
[1731785094491,0.47284111,91104.0,91103.0,0.054857]
[1731785095289,0.11204111,91104.0,91103.0,0.054857]
[1731785095484,0.05868067,91104.0,91103.0,0.054857]
[1731785096600,0.0051,91104.0,91103.0,0.054857]
[1731785096904,0.0051,91104.0,91103.0,0.16462226]
[1731785098093,0.0051,91104.0,91103.0,0.21969843]
[1731785098317,0.0051,91104.0,91103.0,0.16462226]
[1731785099288,0.0051,91104.0,91103.0,0.10976526]
[1731785099487,0.0051,91104.0,91099.0,0.000125]
[1731785099785,0.054858,91100.0,91099.0,0.000125]
[1731785102100,0.10822362,91100.0,91099.0,0.000125]
[1731785102504,0.054858,91100.0,91099.0,0.000125]
[1731785102801,0.10822432,91100.0,91099.0,0.000125]
[1731785103095,0.054858,91100.0,91099.0,0.000125]
[1731785103596,0.054858,91100.0,91099.0,0.00355611]
[1731785104197,0.10822358,91100.0,91099.0,0.00355611]
[1731785104500,0.10822358,91100.0,91099.0,0.000125]
[1731785104501,0.054858,91100.0,91099.0,0.000125]
[1731785104690,0.1082253,91100.0,91099.0,0.000125]
[1731785105415,0.054858,91100.0,91099.0,0.000125]
[1731785105702,0.10822539,91100.0,91099.0,0.000125]
[1731785105884,0.25065209,91100.0,91099.0,0.000125]
[1731785106086,0.30401948,91100.0,91099.0,0.000125]
[1731785106487,0.10822539,91100.0,91099.0,0.0035562]
[1731785107188,0.16305536,91100.0,91099.0,0.0035562]
[1731785107587,0.054861,91095.0,91094.0,0.0016463]
[1731785108600,0.054861,91095.0,91094.0,0.00175435]
[1731785109196,0.054861,91095.0,91094.0,0.05661635]
[1731785109603,0.19287148,91096.0,91095.0,0.054861]
[1731785109795,0.13037148,91097.0,91094.0,0.00175435]
[1731785109989,0.13037148,91098.0,91094.0,0.00175435]
[1731785110604,0.054859,91099.0,91097.0,0.05486]
[1731785111103,0.13037148,91100.0,91094.0,0.00175435]
[1731785111307,0.0051,91101.0,91094.0,0.09541632]
[1731785111505,0.0051,91101.0,91100.0,0.054858]
[1731785111695,0.0051,91101.0,91095.0,0.10977189]
[1731785111696,0.054856,91104.0,91101.0,0.054858]
[1731785112003,0.18522748,91104.0,91101.0,0.054858]
[1731785112207,0.054856,91104.0,91101.0,0.054858]
[1731785113001,0.18522748,91104.0,91101.0,0.054858]
[1731785113196,0.054856,91104.0,91101.0,0.054858]
[1731785113507,0.54502031,91105.0,91101.0,0.054858]
[1731785113508,0.49117148,91105.0,91103.0,0.054857]
[1731785113695,0.3608,91105.0,91103.0,0.054857]
[1731785114097,0.3608,91105.0,91101.0,0.09366197]
[1731785114408,0.3608,91105.0,91104.0,0.16462066]
[1731785119005,0.3608,91105.0,91104.0,0.17491232]
[1731785119305,0.3608,91105.0,91104.0,0.16462066]
[1731785119503,0.3608,91105.0,91104.0,0.16805123]
[1731785121199,0.059955,91107.0,91104.0,0.16805123]
[1731785121396,0.3608,91107.0,91105.0,0.00343057]
[1731785121602,0.054861,91095.0,91092.0,0.0051]
[1731785121803,0.054861,91095.0,91082.0,0.0332]
[1731785121804,0.054861,91095.0,91094.0,0.00518532]
[1731785121999,0.18535461,91095.0,91094.0,0.00175435]
[1731785122207,0.054869,91082.0,91081.0,0.0051]
[1731785122408,0.3608,91085.0,91074.0,0.054874]
[1731785122604,0.054873,91076.0,91074.0,0.054874]
[1731785123215,0.054873,91076.0,91075.0,0.00011439]
[1731785124011,0.13037871,91076.0,91066.0,0.00164702]
[1731785124209,0.3608,91067.0,91066.0,0.00164702]
[1731785124412,0.415678,91067.0,91066.0,0.00164702]
[1731785124804,0.054878,91067.0,91066.0,0.00164702]
[1731785125114,0.054878,91067.0,91066.0,0.00178009]
[1731785125502,0.08,91072.0,91068.0,0.054878]
[1731785126415,0.054877,91070.0,91068.0,0.054878]
[1731785128107,0.0051,91073.0,91072.0,0.054875]
[1731785128322,0.3608,91075.0,91074.0,0.054874]
[1731785129411,0.415673,91075.0,91070.0,0.064]
[1731785129616,0.054874,91074.0,91070.0,0.064]
[1731785129809,0.054874,91074.0,91071.0,0.10980021]
[1731785130215,0.054874,91074.0,91071.0,0.16467621]
[1731785130513,0.3608,91075.0,91071.0,0.10980021]
[1731785130817,0.3608,91075.0,91073.0,0.054875]
[1731785131405,0.0051,91079.0,91074.0,0.10980082]
[1731785131709,0.059971,91079.0,91074.0,0.10980082]
[1731785132521,0.054872,91078.0,91074.0,0.10980082]
[1731785132707,0.3608,91077.0,91066.0,0.05681604]
[1731785132913,0.054877,91069.0,91066.0,0.05681604]
[1731785133214,0.054877,91069.0,91067.0,0.1097978]
[1731785134121,0.0051,91074.0,91068.0,0.054877]
[1731785134319,0.0051,91074.0,91068.0,0.085377]
[1731785134713,0.0051,91074.0,91069.0,0.10980805]
[1731785135026,0.0051,91074.0,91071.0,0.09366197]
[1731785135221,0.054875,91073.0,91071.0,0.09366197]
[1731785135430,0.0304,91084.0,91066.0,0.05681604]
[1731785135431,0.054878,91068.0,91066.0,0.05681604]
[1731785135926,0.054878,91068.0,91067.0,0.10980383]
[1731785140824,0.415678,91068.0,91066.0,0.00013307]
[1731785141027,0.0326,91067.0,91066.0,0.00013307]
[1731785142330,0.0326,91067.0,91054.0,0.054886]
[1731785142331,0.054885,91057.0,91054.0,0.054886]
[1731785142628,0.054882,91061.0,91054.0,0.10980986]
[1731785142815,0.054882,91061.0,91060.0,0.054883]
[1731785143221,0.054882,91061.0,91060.0,0.1648131]
[1731785143727,0.054882,91061.0,91060.0,0.1099301]
[1731785145225,0.054882,91061.0,91060.0,0.00012024]
[1731785151038,0.054882,91061.0,91046.0,0.0051]
[1731785151039,0.05489,91047.0,91046.0,0.0051]
[1731785151333,0.054897,91037.0,91036.0,0.054897]
[1731785151636,0.054897,91037.0,91035.0,0.16471409]
[1731785151637,0.3608,91037.0,91035.0,0.16471409]
[1731785151824,0.3608,91037.0,91035.0,0.10981709]
[1731785152025,0.415696,91037.0,91036.0,9.064e-05]
[1731785155838,0.0051,91042.0,91036.0,0.10993669]
[1731785155839,0.19026289,91042.0,91036.0,0.10993669]
[1731785156135,0.0051,91042.0,91040.0,0.054894]
[1731785156331,0.3659,91047.0,91046.0,0.054891]
[1731785156547,0.41569,91047.0,91042.0,0.054893]
[1731785156842,0.41569,91047.0,91046.0,0.10984303]
[1731785157022,0.13026889,91051.0,91042.0,0.054893]
[1731785157226,0.054893,91044.0,91042.0,0.054893]
[1731785157638,0.054893,91044.0,91043.0,0.10983398]
[1731785157840,0.3659,91047.0,91037.0,0.08024]
[1731785158140,0.054894,91041.0,91038.0,0.054896]
[1731785158837,0.0051,91047.0,91040.0,0.054895]
[1731785159037,0.0051,91047.0,91039.0,0.10983941]
[1731785159239,0.0051,91047.0,91037.0,0.1348187]
[1731785159536,0.054895,91041.0,91038.0,0.06519496]
[1731785159741,0.054895,91041.0,91038.0,0.054896]
[1731785160039,0.054895,91041.0,91040.0,0.054895]
[1731785161442,0.059991,91047.0,91042.0,0.054893]
[1731785161740,0.059991,91047.0,91037.0,0.1348187]
[1731785161741,0.0051,91047.0,91045.0,0.054891]
[1731785161926,0.054888,91051.0,91047.0,0.05489]
[1731785162331,0.054889,91050.0,91047.0,0.05489]
[1731785163642,0.0051,91052.0,91047.0,0.05489]
[1731785163838,0.054889,91049.0,91047.0,0.05489]
[1731785166135,0.13028361,91048.0,91047.0,0.05489]
[1731785166336,0.054889,91049.0,91047.0,0.05489]
[1731785168735,0.1627444,91051.0,91043.0,0.054892]
[1731785168937,0.0051,91052.0,91036.0,9.064e-05]
[1731785168938,0.054896,91037.0,91036.0,9.064e-05]
[1731785170045,0.20195851,91037.0,91036.0,9.064e-05]
[1731785170449,0.22879797,91037.0,91036.0,9.064e-05]
[1731785170651,0.054898,91035.0,91016.0,0.054909]
[1731785170947,0.415698,91035.0,91018.0,0.054908]
[1731785171139,0.46909854,91035.0,91012.0,0.0358]
[1731785171339,0.46910666,91035.0,91012.0,0.0358]
[1731785171539,0.46910666,91035.0,91033.0,8.482e-05]
[1731785174441,0.415698,91035.0,91033.0,8.482e-05]
[1731785174642,0.46910622,91035.0,91033.0,8.482e-05]
[1731785174858,0.415698,91035.0,91033.0,8.482e-05]
[1731785175057,0.46910569,91035.0,91033.0,8.482e-05]
[1731785176151,0.46910822,91035.0,91033.0,8.482e-05]
[1731785178351,0.79866822,91035.0,91033.0,8.482e-05]
[1731785179065,0.38297022,91034.0,91033.0,8.482e-05]
[1731785179446,0.38296998,91034.0,91033.0,8.482e-05]
[1731785180462,0.32956,91034.0,91033.0,8.482e-05]
[1731785181045,0.49228367,91034.0,91017.0,0.054908]
[1731785181250,0.054906,91021.0,91017.0,0.054908]
[1731785182046,0.3608,91024.0,91018.0,0.00011752]
[1731785182250,0.054907,91019.0,91018.0,0.00011752]
[1731785186747,0.0318,91020.0,91019.0,0.054907]
[1731785186948,0.00056001,91024.0,91022.0,0.054905]
[1731785187160,0.05578716,91025.0,91024.0,0.054904]
[1731785187362,0.054902,91027.0,91024.0,0.054904]
[1731785187863,0.13017894,91033.0,91026.0,0.054903]
[1731785188070,0.05495532,91033.0,91032.0,0.0549]
[1731785188255,0.0565444,91038.0,91023.0,0.09366197]
[1731785188447,0.0565444,91038.0,91036.0,0.054897]
[1731785188958,0.054898,91035.0,91031.0,0.0549]
[1731785189965,0.054898,91035.0,91032.0,0.10985027]
[1731785191360,0.054898,91035.0,91032.0,0.16474927]
[1731785191762,0.054898,91035.0,91032.0,0.10985027]
[1731785192067,0.0016484,91038.0,91018.0,0.00011752]
[1731785192068,0.09366197,91033.0,91018.0,0.00011752]
[1731785192248,0.054907,91019.0,91018.0,0.00011752]
[1731785198455,0.18508594,91019.0,91018.0,0.00011752]
[1731785199270,0.054907,91019.0,91018.0,0.00011752]
[1731785200764,0.13056477,91021.0,91019.0,0.054907]
[1731785200966,0.13056477,91025.0,91023.0,0.054905]
[1731785201163,0.13056477,91027.0,91025.0,0.054904]
[1731785201362,0.13056477,91030.0,91028.0,0.054902]
[1731785201671,0.18546577,91030.0,91028.0,0.054902]
[1731785201870,0.13056477,91029.0,91028.0,0.054902]
[1731785202169,0.16272367,91035.0,91029.0,0.10986113]
[1731785202357,0.054901,91030.0,91026.0,0.0629]
[1731785202665,0.1305493,91027.0,91026.0,0.0629]
[1731785202970,0.054903,91028.0,91027.0,0.1098557]
[1731785203473,0.054905,91023.0,91021.0,0.22576291]
[1731785203658,0.13054834,91026.0,91025.0,0.054904]
[1731785204062,0.52352367,91031.0,91025.0,0.054904]
[1731785204259,0.13054646,91028.0,91025.0,0.054904]
[1731785204460,0.054907,91021.0,91019.0,0.054907]
[1731785204655,0.054907,91020.0,91019.0,0.054907]
[1731785205070,0.054907,91020.0,91019.0,0.1647633]
[1731785205964,0.3608,91031.0,91013.0,0.0802]
[1731785205965,0.3608,91022.0,91013.0,0.0802]
[1731785206172,0.054907,91019.0,91014.0,0.05491]
[1731785207574,0.054907,91019.0,91016.0,0.054909]
[1731785208862,0.054907,91019.0,91012.0,0.0626]
[1731785209463,0.054907,91019.0,91014.0,0.05491]
[1731785210886,0.054907,91019.0,91012.0,0.0626]
[1731785211172,0.3608,91022.0,91018.0,0.10998529]
[1731785211378,0.3608,91022.0,91021.0,0.054906]
[1731785211672,0.49190647,91031.0,91021.0,0.09366197]
[1731785211876,0.00056001,91031.0,91030.0,0.054901]
[1731785212176,0.00056001,91031.0,91022.0,0.01030035]
[1731785212177,0.054899,91033.0,91032.0,0.0549]
[1731785212566,0.13054646,91037.0,91023.0,0.14315329]
[1731785212765,0.054902,91029.0,91027.0,0.054902]
[1731785213071,0.13054646,91033.0,91024.0,0.10985329]
[1731785213368,0.3608,91034.0,91019.0,0.05625862]
[1731785213369,0.13054646,91031.0,91019.0,0.05625862]
[1731785213568,0.13054646,91031.0,91025.0,0.1647597]
[1731785213569,0.054903,91026.0,91025.0,0.1647597]